Cogmind - Beta 17.1 @@@ ROGUE MODE // 2026.09.17 @ 01:39:43 Player: Somberlain Result: Destroyed by EH-YHY(j) with Overtuned Pulse Rifle Performance ------------- Evolutions (0) 0 Regions Visited (4) 800 Robots Destroyed (28) 140 Value Destroyed (831) 831 Prototype IDs (0) 0 Alien Tech Used (0) 0 Bonus (66) 66 TOTAL SCORE: 1837 Bonus ------- Follower Combat Kills 66 Cogmind --------- Core Integrity 0/250 Matter 295/300 Energy 99/100 System Corruption 1% Temperature Cool (12) Movement Core (100) Ox1 Location -8/Recycling Parts ------- > --- POWER (1) -------- (None) > --- PROPULSION (2) --- (None) > --- UTILITY (2) ------ Small Storage Unit > --- WEAPON (2) ------- (None) > --- INVENTORY (8) ---- Scrap Engine Trap Scanner Hacking Suite Hacking Suite Authchip [Processor] Subdweller Beam Cannon Heavy Particle Cannon Peak State ------------ > --- POWER ------------ Micro Nuclear Core > --- PROPULSION ------- Carbon-fiber Leg > --- UTILITY ---------- Small Storage Unit Trap Scanner > --- WEAPON ----------- Battle Rifle Battle Cannon > --- INVENTORY -------- Hacking Suite Authchip [Processor] Authchip [Weapon] Subdweller Beam Cannon Heavy Particle Cannon Remote Datajack [Rating: 17] Favorites ----------- Power Subdweller Power Source Engine Subdweller Power Source Power Core Micro Nuclear Core Propulsion Light Treads Treads Light Treads Leg Carbon-fiber Leg Wheel Wheel Utility Scrap Shield Device Trap Scanner Storage Small Storage Unit Protection Scrap Shield Weapon Battle Rifle Energy Cannon Heavy Particle Cannon Ballistic Gun Battle Rifle Ballistic Cannon Battle Cannon Launcher Grenade Launcher Special Weapon Remote Datajack Build | -11 -10 -10 -10 -8 ------- Run | Yrd Mat Min Sub Rec Slots Evolved . | . . . . . Power . | . . . . . Propulsion . | . . . . . Utility . | . . . . . Weapon . | . . . . . Parts Attached 22 | 6 1 . 6 9 Power 4 | 1 . . 2 1 Engine 3 | 1 . . 2 . Core 1 | . . . . 1 Reactor . | . . . . . Propulsion 5 | 2 . . . 3 Treads 2 | 2 . . . . Leg 1 | . . . . 1 Wheel 2 | . . . . 2 Hover . | . . . . . Flight . | . . . . . Utility 4 | 1 . . 1 2 Device 1 | . . . . 1 Storage 1 | 1 . . . . Processor . | . . . . . Hackware . | . . . . . Protection 2 | . . . 1 1 Artifact . | . . . . . Weapon 9 | 2 1 . 3 3 Energy Gun . | . . . . . Energy Cannon 2 | . . . . 2 Ballistic Gun 4 | 2 . . 2 . Ballistic Cannon 1 | . . . 1 . Launcher 1 | . 1 . . . Special Weapon 1 | . . . . 1 Impact Weapon . | . . . . . Slashing Weapon . | . . . . . Piercing Weapon . | . . . . . Special Melee Weapon . | . . . . . Unidentified Prototypes . | . . . . . Parts Lost 9 | . . . 3 6 Power 2 | . . . 1 1 Propulsion 4 | . . . 1 3 Utility . | . . . . . Weapon 3 | . . . 1 2 Highest Loss Streak 4 | . . . 2 4 To Critical Strikes . | . . . . . Average Backups 3 | . . 1 3 5 Power . | . . . . . Propulsion . | . . . . . Utility 1 | . . . . 2 Weapon 2 | . . 1 2 1 Tool/Special . | . . . . . Unused Backups 6 | . . . . 6 Power . | . . . . . Propulsion . | . . . . . Utility 6 | . . . . 6 Weapon . | . . . . . Tool/Special . | . . . . . Average Slot Usage (%) 76 | . 85 85 81 70 Engine 8 | . 14 14 10 5 Treads 17 | . 28 28 27 2 Leg 4 | . . . . 10 Device 3 | . . . . 9 Storage 6 | . 14 14 1 11 Protection 8 | . . . 12 4 Ballistic Gun 15 | . 22 14 17 12 Ballistic Cannon 3 | . . . . 7 Launcher 5 | . 5 14 9 . Peak Build Rating 17 | 6 6 6 12 17 Average Rating 10 | 4 6 6 9 12 On Entrance 5 | . 6 6 6 11 Avg Prop Armor Cover (%) . | . . . . . Naked Turns . | . . . . . Heaviest Build 28 | 11 13 13 28 28 Greatest Support 40 | 40 40 40 40 20 Greatest Overweight (x) 2 | . . . 1 2 Average Overweight (x) . | . . . . . Largest Inventory Capacity 8 | 8 8 8 8 8 Average Capacity 6 | 6 8 8 5 7 Most Carried 8 | . 1 1 5 8 Average Carried 4 | . . 1 4 5 Final Capacity 8 | 8 8 8 5 8 Final Carried 8 | . 1 1 4 8 Class Distribution -------------------- 95% | Mutant 4% | Commander-Mutant Dominant Class ---------------- Mutant | -10/Materials Mutant | -10/Mines Mutant | -10/Subcaves Mutant | -8/Recycling Resources | -11 -10 -10 -10 -8 ----------- Run | Yrd Mat Min Sub Rec Matter Collected 1104 | 235 16 35 497 321 Remotely . | . . . . . Salvage Created 657 | . 39 . 401 217 Parts 39 | . 6 . 22 11 Haulers Intercepted . | . . . . . Recyclers Shooed . | . . . . . Parts Field Recycled . | . . . . . Retrieved Matter . | . . . . . Parts Self-Destructed 12 | . . . 12 . Prevented . | . . . . . Parts Restored . | . . . . . Kills | -11 -10 -10 -10 -8 ------- Run | Yrd Mat Min Sub Rec Combat Hostiles Destroyed 25 | . 4 . 17 4 Guns 7 | . . . 6 1 Cannons 3 | . . . . 3 AOE 15 | . 4 . 11 . Classes Destroyed 8 | . 2 . 2 4 Recycler 1 | . . . . 1 Turret 2 | . . . 2 . Swarmer 9 | . 3 . 6 . Grunt 4 | . 1 . 2 1 Brawler 1 | . . . . 1 Duelist 1 | . . . . 1 Programmer 1 | . . . . 1 Subdweller 9 | . . . 9 . Best Kill Streak 4 | . 4 . 3 2 Combat Bots Only 4 | . 4 . 3 2 Max Kills in Single Turn 3 | . 3 . 2 1 Gunslinging 1 | . . . 1 . Exploded 3 | . 3 . 2 . Melee . | . . . . . Uniques/NPCs Destroyed . | . . . . . Combat | -11 -10 -10 -10 -8 -------- Run | Yrd Mat Min Sub Rec Hostile Shots Fired 158 | . 4 . 117 37 Missed 56 | . 1 . 49 6 Hits 102 | . 3 . 68 31 Projectile 102 | . 3 . 68 31 Critical Strikes 1 | . . . . 1 Damage Taken 1599 | . 107 . 927 565 Core 259 | . 41 . 56 162 Absorbed by Shields . | . . . . . Core Remaining (%) 100 | 100 . . . . Volleys Fired 81 | . 4 . 56 21 Largest 2 | . 1 . 2 2 Hottest 58 | . 30 . 58 58 Shots Fired 115 | . 4 . 73 38 Gun 52 | . . . 31 21 Cannon 22 | . . . 5 17 Launcher 41 | . 4 . 37 . Special . | . . . . . Kinetic 74 | . . . 36 38 Thermal . | . . . . . Explosive 41 | . 4 . 37 . Electromagnetic . | . . . . . Robot Hit Streak 17 | . 1 . 17 6 Robot Miss Streak 2 | . 1 . 2 2 Penetration Max . | . . . . . Secondary Targets 1 | . . . 1 . Max Gunslinging Chain 1 | . . . 1 . Shots Hit Robots 72 | . 1 . 45 26 Core Hits 45 | . 6 . 33 6 Critical Kills . | . . . . . Critical Parts Destroyed . | . . . . . Critical Strikes . | . . . . . Melee Attacks . | . . . . . Impact . | . . . . . Slashing . | . . . . . Piercing . | . . . . . Sneak Attacks . | . . . . . Combat Hostiles . | . . . . . Follow-up Attacks . | . . . . . Damage Inflicted 2487 | . 289 . 1673 525 Guns 615 | . . . 387 228 Cannons 367 | . . . 72 295 Explosions 1503 | . 289 . 1214 . Melee . | . . . . . Ramming 2 | . . . . 2 Kinetic 982 | . . . 459 523 Thermal . | . . . . . Explosive 1503 | . 289 . 1214 . Electromagnetic . | . . . . . Impact . | . . . . . Slashing . | . . . . . Piercing . | . . . . . Highest Corruption 1 | . . . . 1 Average Corruption 1 | . . . . 1 Corruption Purged . | . . . . . Corruption Blocked . | . . . . . Overload Shots . | . . . . . Overflow Damage 23 | . . . 12 11 Projectiles 23 | . . . 12 11 Explosions . | . . . . . Melee . | . . . . . Knockbacks 1 | . . . 1 . Impact . | . . . . . Kinetic 1 | . . . 1 . Secondary . | . . . . . Self-Inflicted Damage 203 | . 80 . 123 . Shots 8 | . 3 . 5 . Rammed 2 | . . . . 2 Targets Rammed 2 | . . . . 2 Kicked . | . . . . . Crushed . | . . . . . Highest Temperature 44 | . 1 . 17 44 Average Temperature 12 | . 1 . 5 13 Received Heat Transfer 544 | . 12 . 240 292 Siege Activations . | . . . . . Martial Activations . | . . . . . Shielding Activations . | . . . . . Robots Disrupted . | . . . . . Combat Hostiles . | . . . . . Robots Corrupted . | . . . . . Combat Hostiles . | . . . . . Parts Fried . | . . . . . Impact Corruptions . | . . . . . Robots Melted . | . . . . . Combat Hostiles . | . . . . . Parts Melted . | . . . . . Heat Transferred . | . . . . . Parts Sabotaged . | . . . . . Parts Stolen . | . . . . . Parts Stripped . | . . . . . Power Chain Reactions . | . . . . . Alert | -11 -10 -10 -10 -8 ------- Run | Yrd Mat Min Sub Rec Maximum Alert Level . | . . . . . Low Security (%) 100 | 100 100 100 . 100 Level 1 . | . . . . . Level 2 . | . . . . . Level 3 . | . . . . . Level 4 . | . . . . . Level 5 . | . . . . . High Security . | . . . . . Max Security . | . . . . . Peak Influence 107 | . 107 37 . 66 Initial 57 | . . 37 . 57 Average 10 | . 35 17 . 9 Influence Increases 574 | . 107 . 280 187 Destroy 0b10 Robot/C 400 | . 80 . 200 120 Destroy 0b10 Robot/NC 10 | . . . . 10 Destroy Leader 30 | . 10 . 20 . Allied During Kill 2 | . . . . 2 Successful Hack 25 | . . . . 25 Disable Machine 15 | . . . . 15 Destroy Structure 17 | . 17 . . . Lose Combat Pursuer 75 | . . . 60 15 Influence Decreases 574 | . 10 97 161 306 Entered New Map 122 | . . 60 . 62 Time Decay 389 | . 10 37 131 211 Lost Part 43 | . . . 30 13 Lost Ally 20 | . . . . 20 Squads Dispatched 1 | . 1 . . . Investigation . | . . . . . Extermination . | . . . . . Reinforcement 1 | . 1 . . . Assault . | . . . . . Garrison . | . . . . . Intercept . | . . . . . Searches Triggered . | . . . . . Construction Impeded . | . . . . . Haulers Reinforced . | . . . . . Active Scanning Responses . | . . . . . Cargo Convoy Interrupts . | . . . . . Stealth | -11 -10 -10 -10 -8 --------- Run | Yrd Mat Min Sub Rec Distress Signals 2 | . 2 . . . Communications Jammed . | . . . . . Distress Signals . | . . . . . Times Spotted 36 | . 6 . 21 9 Peak Tracking Total 6 | . 6 . 5 5 Tactical Retreats 3 | . . . 2 1 Traps | -11 -10 -10 -10 -8 ------- Run | Yrd Mat Min Sub Rec Traps Triggered . | . . . . . Indirectly . | . . . . . Trap Hack Attempts . | . . . . . Triggered . | . . . . . Disarmed . | . . . . . Reprogrammed . | . . . . . Reused . | . . . . . Traps Extracted . | . . . . . Installed . | . . . . . Triggered . | . . . . . Most Traps Carried 1 | . . . 1 1 Machines | -11 -10 -10 -10 -8 ---------- Run | Yrd Mat Min Sub Rec Machines Disabled 4 | . . . 3 1 Max in Single Turn 3 | . . . 3 1 Machines Repaired . | . . . . . Machines Dismantled . | . . . . . Machines Sabotaged . | . . . . . Overloaded Fab Kills . | . . . . . Hacking | -11 -10 -10 -10 -8 --------- Run | Yrd Mat Min Sub Rec Machines Accessed 8 | . . . . 8 Terminals 5 | . . . . 5 Fabricators . | . . . . . Repair Stations . | . . . . . Recycling Units 2 | . . . . 2 Scanalyzers . | . . . . . Garrison Access . | . . . . . Total Hacks 26 | . . . . 26 Successful 9 | . . . . 9 Failed 15 | . . . . 15 Catastrophic 3 | . . . . 3 Database Lockouts 2 | . . . . 2 Manual 8 | . . . . 8 Terminals 20 | . . . . 20 Fabricators . | . . . . . Repair Stations . | . . . . . Recycling Units 4 | . . . . 4 Scanalyzers . | . . . . . Garrison Access . | . . . . . Terminal Hacks 8 | . . . . 8 Record 2 | . . . . 2 Part Schematic 2 | . . . . 2 Robot Analysis 2 | . . . . 2 Release Object 2 | . . . . 2 Fabricator Hacks . | . . . . . Repair Station Hacks . | . . . . . Recycling Unit Hacks 1 | . . . . 1 Retrieve Components 1 | . . . . 1 Scanalyzer . | . . . . . Garrison Access Hacks . | . . . . . Unauthorized Hacks . | . . . . . Terminals . | . . . . . Fabricators . | . . . . . Repair Stations . | . . . . . Recycling Units . | . . . . . Scanalyzers . | . . . . . Garrison Access . | . . . . . Data Cores Recovered . | . . . . . Used . | . . . . . Hacking Detections 7 | . . . . 7 Full Trace Events 6 | . . . . 6 Feedback Events . | . . . . . Feedback Blocked . | . . . . . Robot Schematics Acquired . | . . . . . Robots Built . | . . . . . Authchips . | . . . . . Time . | . . . . . Total Robot Build Rating . | . . . . . Part Schematics Acquired 2 | . . . . 2 Parts Built . | . . . . . Authchips . | . . . . . Time . | . . . . . Total Part Build Rating . | . . . . . Part Studies Acquired . | . . . . . Parts Repaired . | . . . . . Time . | . . . . . Parts Recycled . | . . . . . Recycled Matter . | . . . . . Retrieved Matter . | . . . . . Retrieved Components 1 | . . . . 1 Parts Scanalyzed . | . . . . . Part Schematics Acquired . | . . . . . Parts Damaged . | . . . . . Bothacking | -11 -10 -10 -10 -8 ------------ Run | Yrd Mat Min Sub Rec Used RIF Installer . | . . . . . Robots Hacked . | . . . . . Non-combat . | . . . . . Combat . | . . . . . Robot Hacks Applied . | . . . . . Relay Couplers Released . | . . . . . Fabnet Peak Effective % . | . . . . . Robots Rewired 7 | . . . . 7 Allies Hacked . | . . . . . Hacks Repelled . | . . . . . Allies | -11 -10 -10 -10 -8 -------- Run | Yrd Mat Min Sub Rec Total Allies 7 | . . . . 7 Largest Group 6 | . . . . 6 Highest-Rated Group 64 | . . . . 64 Highest-Rated Ally 16 | . . . . 16 Total Orders . | . . . . . Ally Attacks 12 | . . . . 12 Total Damage 219 | . . . . 219 Kills 2 | . . . . 2 Allies Corrupted . | . . . . . Allies Melted . | . . . . . Intel | -11 -10 -10 -10 -8 ------- Run | Yrd Mat Min Sub Rec Active Infowar (turns) 890 | . . . . 890 Traps 890 | . . . . 890 Robot Analysis Total 2 | . . . . 2 Derelict Logs Recovered 2 | . . 1 1 . Drone Launches . | . . . . . Drone Recoveries . | . . . . . Exploration | -11 -10 -10 -10 -8 ------------- Run | Yrd Mat Min Sub Rec Turns Passed 3271 | 64 99 97 1648 1363 Spaces Moved 1797 | 37 56 53 897 754 Core 15 | 3 . . . 12 Treads 1158 | 34 56 53 897 118 Legs 624 | . . . . 624 Wheels . | . . . . . Hover . | . . . . . Flight . | . . . . . Fastest Speed 50 | 50 160 160 160 100 Average Speed 158 | 151 160 160 160 155 Slowest Speed 240 | 160 160 160 240 240 Overloaded Moves . | . . . . . Propulsion Burnouts . | . . . . . Robots Hopped . | . . . . . Potential Cave-ins . | . . . . . Cave-ins Triggered . | . . . . . Exploration Rate (%) 42 | 3 26 20 64 99 Regions Visited 4 Branch Regions 3 Pre-discovered Areas 1 | . . . 1 . Known Exits Taken . | . . . . . Unknown Exits Taken 4 | 1 1 1 1 . Scrap Searched 2 | . . 1 1 . Spaces Dug . | . . . . . Terrain Destroyed 183 | . 20 . 163 . Melee . | . . . . . Projectile . | . . . . . AOE 183 | . 20 . 163 . Terrain Rammed . | . . . . . Walls Destroyed . | . . . . . Machines Disabled . | . . . . . Actions | -11 -10 -10 -10 -8 --------- Run | Yrd Mat Min Sub Rec Total 2108 | 42 61 65 1031 909 Wait 99 | . . 13 49 37 Move 1793 | 36 55 52 896 754 Hop . | . . . . . Pick Up 18 | . 1 . 6 11 Fast Attach 13 | 6 . . 2 5 Attach 7 | . . . 2 5 Detach 3 | . . . . 3 Swap 8 | . 1 . 6 1 Drop 15 | . . . 4 11 Fire 81 | . 4 . 56 21 Melee . | . . . . . Ram 2 | . . . . 2 Kick . | . . . . . Crush . | . . . . . Escape Stasis . | . . . . . Rewire 59 | . . . . 59 Trap . | . . . . . Miscellaneous 10 | . . . 10 . Route ------- -11/Scrapyard -10/Materials -10/Mines -10/Subcaves (discovered 2 exits: [*Mat] / *Rec) -8/Recycling (discovered 1 exit: [*Fac]) History --------- Turn | Location | Event 6 | -11/Scrapyard | Discovered new exit (range 16) 65 | -11/Scrapyard | Entered Materials 140 | -10/Materials | Discovered new exit (range 12) 164 | -10/Materials | Entered Mines 190 | -10/Mines | Met a Derelict bent on vengeance 217 | -10/Mines | Learned 2 Materials zone layouts 248 | -10/Mines | Discovered new exit (range 3) 261 | -10/Mines | Entered Subcaves 265 | -10/Subcaves | Learned location of Recycling (-8) 316 | -10/Subcaves | Build established: Mutant 325 | -10/Subcaves | Discovered new exit (range 15) 364 | -10/Subcaves | Disturbed a concealed Subdweller 1216 | -10/Subcaves | Ambushed by Subdwellers from Twisted Machinery 1469 | -10/Subcaves | A swath of the cavern ceiling suddenly collapsed 1619 | -10/Subcaves | Ambushed by Subdweller buried in earth 1860 | -10/Subcaves | Discovered new exit (range 11) 1909 | -10/Subcaves | Entered Recycling 2681 | -8/Recycling | Core integrity fell below 50% 2926 | -8/Recycling | Discovered new exit (range 16) 2980 | -8/Recycling | Scanned before Scraplab entrance 3230 | -8/Recycling | Entered Scraplab 3247 | -8/Recycling | Angered Scraplab inhabitants 3248 | -8/Recycling | Found Prototype Device 3268 | -8/Recycling | Core integrity fell below 20% 3272 | -8/Recycling | Destroyed by EH-YHY(j) with Overtuned Pulse Rifle Last Messages --------------- 03251_ Excavator 3a destroyed. 03253_ Carbon-fiber Leg destroyed. 03253_ Dropped Imp. Light Armor Plating. 03254_ Slammed into 6B-XLS(c). 03254_ Destabilizing: System corrupted (+1). 03254_ Scavenger 3a destroyed. 03257_ I2-PX0(j) heat damages Scrap Suit. 03257_ Excavator 3b destroyed. 03258_ Acquired Wheel. 03259_ Wheel destroyed. 03260_ I2-PX0(j) heat spikes uncontrollably. Prototype Device integrity failing. 03260_ Slammed into EH-YHY(j). 03260_ I2-PX0(j) overheating. 03261_ Acquired 16 matter. 03261_ Remote Datajack destroyed. 03262_ Acquired Wheel. 03263_ Wheel destroyed. 03263_ Critical hit (Burn: +50). Prototype Device integrity failing. Map ----- +----------------------------------------------------+ | ????????????????????????????????????????? | | ????????????????????????????????????????? | | ????????????????????????????????????????? | | ????????????????????????????????????????? | | ????????????????????????????????????????? | | ????????????????????????????????????????? | | ????????????????????????????????????????? | | ????????????????????????????????????????? | | ????????????????????????????????????????? | | ????????????????????????????????????????? | | ????????????????????????????????????????? | | ????????????????????????????????????????? | | ????????????????????????????????????????? | | ????????????????????????????????????????? | | ????????????????????????????????????????? | | ????????????????????????????????????????? | | ????????????????????????????????????????? | | ????????????????????????????????????????? | | ????????????????????????????????????????? | | ????????????????????????????????????????? | | ????????????????????????????????????????? | | ?????????#####???????????######?????????? | | ?????????# #???????????# #?????????? | | ?????????# < #????#####??# #??###????? | | ?????????# #????# #### ####*##???? | | ?????????# #????# @ jj |#???? | | ?????????# #????# #### #####%#???? | | ?????????# #??####+###?# #???# #???? | | ?????????# #??# #?# #???#!#???? | | ########?# #??# #?######???#!#???? | | !#?# #??# #??????#####/####? | | % #?# #??# ##?????#""%!=% "#? | | ] #?# #??# #?????#"&!%*!""#? | | % #?# #??# ##?????#" [* "#? | | #?# #??# #??????#" =%= X"#? | | !#?# #??# #??????#"& * "#? | | %%% #?# #??# #??????#" ""#? | | * #?# #??# #??????#"X "#? | | ####+##### #### #??????#" ###? | | % % / #??????# "" #??? | | %% # #??????# """ ??? | | #########?????########??? | | % #???????????????? | | #???????????????? | | ###?????????????? | | /""#?????????????? | | Y"#?????????????? | | ""#?????????????? | | ###?????????????? | | #???????????????? | +----------------------------------------------------+ Best States ------------- Heat Dissipation 25 Energy Generation 15 Energy Capacity 200 Matter Stores 300 Matter Capacity 300 Sight Range 16 Terrain Scan Density 10 Armor Coverage 800 Evasion (%) 55 Recoil Reduction 2 Authchip Count 3 Item Schematics ----------------- Cryofiber Web | -8/Recycling | Hacked Adv. Sensor Array | -8/Recycling | Hacked Robot Schematics ------------------ None Fabricated ------------ Nothing Repaired ---------- Nothing Studied --------- None Alien Tech Used ----------------- None Achievements -------------- Survival Of The Most Covered Challenges ------------ None Game ------ Seed FirePhysicsShielding Manual? 0 Play Time 00:16:04 Cumulative 129.7 hours Start 2026.09.17 @ 01:25:07 End 2026.09.17 @ 01:39:43 Sessions 1 Manual Loads 0 Difficulty Rogue Special Mode None Game No. 148 Rogue 148 Adventurer 0 Explorer 0 Win Type - Total 0 Types 0/0/0/0/0/0/0/0/0/0 Lore% 52 Gallery% 55 Achievement% 44 Wizard Run 0 Options --------- Layout 1 ASCII 0 Keyboard 0 Movement Mouse Keybinds 0 Fullscreen 2 Font 24/Smallcaps Map View 50x35 Zoom Use 0% Tactical HUD 1 Map Filters NONE Filters NONE Steam 1 RUN: bd5387be-84af-4edc-b23a-d96eb73c8972